Workbook

Sheet Assumptions & Constraints
A1: Electrical Power Subsystem | F1: Source
B2: Solar panels GaAs UTJ | C2: BOL | D2: 330 | E2: W/m2 | F2: Spectrolab Tech Spec >2.5 m3
C3: EOL | D3: =D2*0.9 -> 297 | E3: W/m2 | F3: 0.9
C4: Mass | D4: 2.06 | E4: kg/m2 | F4: Spectrolab Tech Spec
B5: Li+ Batteries | C5: BOL | D5: =240/24 -> 10 | E5: A-Hr | F5: 702HP
C6: EOL | D6: =D5*0.9 -> 9 | E6: A-Hr | F6: 0.9
C7: Mass | D7: 4.85 | E7: kg/cell | F7: 702HP
A8: Thermal
B9: Radiators | C9: Dissipation | D9: 533 | E9: W/m2 | F9: Thermal Management Inc
A11: Propulsion
B12: Hall-Effect Thrusters | C12: Mass | D12: 25 | E12: kg | F12: Busek BHT8000 Tech Spec
C13: size (h) | D13: 25 | E13: cm | F13: Literature
C14: size (w) | D14: 25 | E14: cm | F14: Literature
C15: size (d) | D15: 25 | E15: cm | F15: Literature
C16: Isp | D16: (select) | F16: Busek BHT8000 Tech Spec
C17: Power | D17: (select) | F17: Busek BHT8000 Tech Spec
C18: Eff | D18: (select) | F18: Busek BHT8000 Tech Spec
C19: Thrust | D19: (select) | F19: Busek BHT8000 Tech Spec
B20: Xe Propellant | C20: Triple Point | D20: =58 *14.5 -> 841 | E20: PSIA
C21: Triple Point | D21: 19.8 | E21: deg C
C22: Triple Point | D22: =1720/58.46 -> 29.42182689 | E22: kg/m3
A23: Attitude Control System
B24: Mono-prop thrusters | C24: Thrust | D24: 5 | E24: N
B25: Pointing Accuracy | C25: 36 | E25: arcseconds | F25: Based on GMAT simulation of Edelbaum-Alfano control law
A26: Other Subsystems | C26: Mass | D26: (See Mass Budget) | F26: SMAD Table 14-18, Centaur 4x2 Reference

Sheet Mission Requirements
B1: Architectural assumptions
B2: AA0001 | C2: Mission analysis using low constant thrust Alfano Transfer Orbits, where an Alfano orbit a minimum of 5 continuous thrust spirals with a constant rate of inclination change for each spiral
A3: Requirements
A4: Prefix | B4: Type (R/H/C) | C4: Number | D4: Text
A5: SYS | B5: H | C5: 1000 | D5: System Requirements
A6: SYS | B6: R | C6: 1001 | D6: The system Initial Operating Capability (IOC) shall transfer payloads in the 4000 to 8000 kg range of mass to equatorial Geo-synchronous Equatorial Orbit (GEO)
A7: SYS | B7: R | C7: 1002 | D7: The system Final Operating Capability (FOC) shall transfer payloads in the 4000 to 8000 kg range of mass to orbits in CIS-Lunar space, including Low Luna Orbit, High Lunar Orbit, and Lagrangian point orbits
A8: SYS | B8: R | C8: 1003 | D8: The system Final Operating Capability shall transfer payloads in the 4000 to 8000 kg range Aten and Apollo Group Asteroid transfer orbits.
A9: SYS | B9: R | C9: 1004 | D9: The system shall transfer payloads from 0 to 60 degree inclined, circular Low Earth Orbit (LEO) to the IOC and FOC defined destination orbits.
A10: SYS | B10: R | C10: 1005 | D10: The system nominal LEO departure orbit shall be defined as 500 km circular [TBR] with an eccentricity of 0.05 [TBR] or less.
A11: SYS | B11: R | C11: 1006 | D11: The system shall be designed for propellant resupply of the orbit transfer vehicle in the departure orbit.
A12: SYS | B12: R | C12: 1007 | D12: The system shall be designed for rendezvous with a cooperative client injected into departure orbit within the 3σ accuracies acheivable by Proton/Briz M launch vehicles
A13: SYS | B13: R | C13: 1008 | D13: The system FOC shall transfer payloads to destination orbits in CIS-Lunar space, including Geosynchronous Equatorial Orbit (GEO), High Lunar Orbit (HLO), and Lagrangian point orbits
A14: SYS | B14: R | C14: 1009 | D14: The system FOC shall transfer client payloads to hyperbolic orbits with excess velocity from 0 to [TBD] km/sec.
A15: SYS | B15: R | C15: 1010 | D15: The system IOC shall be sized to transfer a minimum of 6 client vehicles to GSO per year.
A16: SYS | B16: R | C16: 1011 | D16: The system FOC shall be sized for 6 [TBR] missions to CIS-Lunar space per year to space, plus 2 [TBR] missions to Aten or Apollo group Asteroids
A18: MIS | B18: H | C18: 2000 | D18: Vehicle Requirements
A19: MIS | B19: C | C19: 2001 | D19: In the following requirements, a Cooperative Client Spacecraft (CCS) is defined to be a vehicle designed for at least 190 minutes of survival in LEO orbit and with 3-axis stabilization and accommodations to enable target aquisition, rendezvous, rigid robotic grapple, transfer of control, and berthing.
A20: MIS | B20: C | C20: 2002 | D20: In the following requirements, an Electric Orbit Transfer Vehicle (EOTV) is defined to be a vehicle designed to accomplish the payload transfer requirements of section 1000 subject to the further requirements in this section.
A21: MIS | B21: R | C21: 2002 | D21: The space tug shall maneuver from an initial parking orbit to rendezvous with a CCS that is injected into a circular LEO orbit of from 200 km to 800 km altitude.
A22: MIS | B22: R | C22: 2003 | D22: The space tug shall rendezvous with a CCS from either -v or +v direction along the orbit track
A23: MIS | B23: R | C23: 2004 | D23: The space tug shall rendezvous with a CCS from either -r or +r direction along the Earth radius vector
A24: MIS | B24: R | C24: 2005 | D24: The space tug shall determine target rendezvous ephemeris upon initial sensor acquisition of the CCS from a 200 km distance.
A25: MIS | B25: R | C25: 2006 | D25: The space tug shall open-loop manuever to within 10 km of last known ephemeris of a CCS.
A26: MIS | B26: R | C26: 2007 | D26: The space tug shall transfer the CCS to any of the required destination orbits from circular orbit inclined at up to 67.3° [TBR] to Earth equator.
A27: MIS | B27: R | C27: 2008 | D27: The space tug shall transfer client spacecraft to GEO that have an initial mass in LEO of up to 8000 kg
A28: MIS | B28: C | C28: 2009 | D28: The following requirement is based on the GEO injection capabilities of the Delta IV vehicle.
A29: MIS | B29: R | C29: 2010 | D29: The space tug shall inject a client spacecraft into GEO with 3σ accuracies of ±0.10° in inclination, ±150 km in perigee and ±150 km in apogee.
A30: MIS | B30: R | C30: 2011 | D30: The space tug roundtrip GEO mission time shall be less than 90 days.
A31: MIS | B31: C | C31: 2014 | D31: The following requirement is based on the SSO injection capabilities of the Delta IV vehicle.
A32: MIS | B32: R | C32: 2015 | D32: The space tug shall inject a client spacecraft into 1000 km SSO with 3σ accuracies of ±0.08° in inclination, ±11 km in perigee and ±11 km in apogee.
A33: MIS | B33: R | C33: 2016 | D33: The space tug roundtrip SSO mission time shall be less than 120 days.
A35: MIS | B35: H | C35: 3000 | D35: Propellant Servicing Requirements

Sheet Calculations
C1: GM | D1: SQRT | N1: Validation data for of Macro EarHohmanXfer
A2: Moon GM (m^3/s^2) | B2: Luna | C2: 4900000000000 | D2: =SQRT(GM_Moon) -> 2213594.362 | F2: 0.08 | G2: =12*12 -> 144 | H2: months | K2: =810000000 -> 810000000 | O2: Example, SMAD p.229: the total delta-V to transfer from a 250 km parking orbit at 28.5 degrees inclination to a geosynchronous equatoral orbit.
A3: Earth GM (m^3/s^2) | B3: Earth | C3: 398600000000000 | D3: =SQRT(GM_Earth) -> 19964969.32 | K3: =PMT(F2,12,K2) -> -107482963.7 | O3: ri (m) | P3: rf (m) | Q3: ΔVapo | R3: ΔVper | U3: aTx (m) | V3: 1/aTx
A4: Mars GM (m^3/s^2) | B4: Mars | C4: 42800000000000 | D4: =SQRT(GM_Mars) -> 6542170.894 | O4: =(250+Radius_Earth)*1000 -> 6628137 | P4: 42159000 | Q4: 1472.05378 | R4: 2440.039114 | S4: (macro) | U4: =0.5*(O4+P4) -> 24393568.5 | V4: =1/U4 -> 4.099441211e-08
A5: Sun GM (m^3/s^2) | B5: Sun | C5: 1.327e+20 | D5: =SQRT(GM_Sun) -> 1.15195486e+10
A6: g0 | B6: 9.8066 | C6: m/s^2 | N6: ii | O6: 28.5 | P6: deg
A7: TU | B7: 806.8111238 | C7: sec | N7: if | O7: 0 | P7: deg
A8: Solar Seconds per day | B8: =24*3600 -> 86400 | C8: sec
A9: Reference Vehicle | N9: Vi | O9: 7.75 | P9: km/s
B10: Mpl | C10: 4000 | D10: kg | N10: Vf | O10: 3.07 | P10: km/s | Y10: =SUM(Y13:Y14) -> 3912.036911 | Z10: =4270-Y10 -> 357.9630895
B11: Ms | C11: 2724 | D11: kg | E11: Based on Centaur 4x2 | K11: Num Pnls | L11: α | N11: ΔVa | O11: 2.44 | P11: km/s | Q11: 1/V | R11: 2/V | T11: 1st term | U11: Sqrt | W11: 2nd term | X11: Sqrt
B12: Thrust | C12: =12*0.449 -> 5.388 | D12: kg-m/s2 | E12: UJT 6 mil coverside | G12: Pnls/Wing | H12: mass (kg) | K12: =E13/2.5 -> 109.7142857 | L12: =C13/(H13+8*200) -> 0.04434121622
A13: 8 x 14 Panel Wings, GaAs UTJ, 350 W/m2 | B13: Power | C13: =12*8 -> 96 | D13: kW | E13: =C13*1000/350 -> 274.2857143 | F13: sq m | G13: =K12/8 -> 13.71428571 | H13: =E13*2.06 -> 565.0285714 | N13: ΔVb | O13: 1.83 | P13: km/s | Q13: =1/O4 -> 1.508719569e-07 | R13: =2/O4 -> 3.017439139e-07 | T13: =R13-V4 -> 2.607495017e-07 | U13: =SQRT(T13) -> 0.0005106363694 | W13: =Q13 -> 1.508719569e-07 | X13: =SQRT(W13) -> 0.000388422395 | Y13: =SQRT_GM_Earth*(U13-X13) -> 2439.99825 | Z13: ΔVper (m/s) | AC13: (is correct)
B14: Isp | C14: 2020 | D14: sec | Q14: =1/P4 -> 2.37197277e-08 | R14: =2/P4 -> 4.74394554e-08 | T14: =Q14 -> 2.37197277e-08 | U14: =SQRT(T14) -> 0.0001540121024 | W14: =R14-V4 -> 6.445043282e-09 | X14: =SQRT(W14) -> 8.028102691e-05 | Y14: =SQRT_GM_Earth*(U14-X14) -> 1472.038661 | Z14: ΔVapo (m/s) | AC14: (is correct)
B15: Acceleration, | C15: =LowThrust/Mass_mb_Ref -> 0.002667326733 | D15: m/s2 | N15: Vgeo | O15: =SQRT(GM_Earth/(P4)) -> 3074.8469 | Y15: =2*O15*SIN(RADIANS(O6/2)) -> 1513.76738 | Z15: ΔVplane-change | AC15: (is correct)
A16: Ecliptic Inclination (to equator) | C16: 3.2 | D16: deg | N16: Vleo | O16: =SQRT(GM_Earth/(O4)) -> 7754.8412 | U16: check | Y16: =SUM(Y13:Y15) -> 5425.804291 | Z16: ΔVtotal | AC16: (is correct)
A17: Isp-low | C17: 320 | D17: sec | N17: Vhi | O17: =SQRT_GM_Earth*SQRT(2/P4-V4) -> 1602.808239 | P17: m/s | Q17: Velocity at Transfer orbit Apoapsis | U17: =Y14+O17 -> 3074.8469 | V17: (is correct) | Y17: =SQRT(O17^2+O15^2-2*O17*O15*COS(RADIANS(O6))) -> 1833.404174 | Z17: ΔVplane-change at apogee
A18: Isp-Hi | C18: 2020 | D18: sec | N18: Vlo | O18: =SQRT_GM_Earth*SQRT(2/O4-V4) -> 10194.83945 | P18: m/s | Q18: Velocity at Transfer orbit Periapsis | U18: =Y13+O16 -> 10194.83945 | V18: (is correct) | Y18: =Y17+Y13 -> 4273.402424 | Z18: ΔVtotal | AC18: (is correct)
A19: Drag Coefficient | C19: 0.75 | D19: (Hill & Peterson, Figure10-4)
A20: 250 km Burn time | C20: 90 | D20: sec | O20: Perigee | P20: Apogee | Q20: Anomaly | R20: Velocity
A21: Gravity drag (m/s) | C21: =9.8*C20 -> 882 | D21: m/s | O21: =(250+Radius_Earth)*1000 -> 6628137 | P21: 42159000 | Q21: 1472.05378 | R21: 2440.039114
A22: Aerodynamic drag (approx) | C22: =C20*10/C19 -> 1200 | D22: m/s | E22: (SMAD p530) | O22: =(250+Radius_Earth)*1000 -> 6628137 | P22: 42159000 | Q22: 42159000 | R22: 1602.794801
C23: Altitude perigee (km) | D23: Altitude apogee (km) | E23: Semi-major a (km) | F23: Orbit V (m/s) | G23: Period (sec) | H23: Period (min) | I23: Mean Motion | O23: =(250+Radius_Earth)*1000 -> 6628137 | P23: 42159000 | Q23: =(250+Radius_Earth)*1000 -> 6628137 | R23: 10194.9647
A24: Earth Radius | C24: 0 | D24: 0 | E24: 6378.137 | F24: =SQRT(1/1000*GM_Earth/(Radius_Earth+C24)) -> 7905.361338
A25: LEO Circular | C25: 500 | D25: 500 | E25: =Radius_Earth+C25 -> 6878.137 | F25: =SQRT(1/1000*GM_Earth/(Radius_Earth+C25)) -> 7612.603954 | G25: =2*PI()/I25 -> 5676.981175 | H25: =G25/60 -> 94.61635291 | I25: =SQRT(GM_Earth/(SMA_LEO*1000)^3) -> 0.001106782833
A26: 1000 km SSO | C26: 1000 | D26: 1000 | E26: 1000 | F26: =SQRT(1/1000*GM_Earth/(Radius_Earth+C26)) -> 7350.134556 | L26: =SMA_GEO/Radius_Earth -> 6.610020606 | M26: R
A27: GEO | C27: 35781.48 | D27: 35781.48 | E27: =Radius_Earth+C27 -> 42159.617 | F27: =SQRT(1/1000*GM_Earth/(Radius_Earth+C27)) -> 3074.8244
A29: Hohmann Transfers
A30: LEO Parking to 1000 km SSO | B30: h-low (m) | C30: h-high (m) | D30: ΔVapo | E30: ΔVperi | F30: a-trans (m) | G30: Period (sec) | H30: Period (hr) | I30: mean motion, n (rad/s)
A31: Hohman transfer ΔV (m/s) | B31: =SMA_LEO*1000 -> 6878137 | C31: =(SMA_LEO+1000)*1000 -> 7878137 | D31: 245.2531215 | E31: 253.7239563 | F31: =0.5*(B31+C31) -> 7378137 | G31: =2*PI()/I31 -> 6307.122902 | H31: =G31/3600 -> 1.751978584 | I31: =SQRT(GM_Earth/(F31)^3) -> 0.0009962046728
A32: Initial inclination (deg) | B32: 67.3
A33: Final inclination (deg) | B33: 99.4
B35: perigee | C35: apogee | D35: r | E35: Vr
A36: Elliptical Velocity | B36: =(Radius_Earth+500)*1000 -> 6878137 | C36: =(Radius_Earth+1000)*1000 -> 7378137 | D36: =(Radius_Earth+1000)*1000 -> 7378137 | E36: 7220.159627
C37: initial i (deg) | D37: final i (deg) | E37: ΔV (m/s)
A38: Simple inclination change | C38: 67.3 | D38: 99.4 | E38: =2*V_SSO_1000*SIN(RADIANS(D38-C38)/2) -> 4064.273218
B39: perigee | C39: apogee | D39: ΔVapo | E39: ΔVperi | F39: ΔVapo+i | H39: ΔV tot
A40: Hohmann | B40: =(Radius_Earth+500)*1000 -> 6878137 | C40: =(Radius_Earth+1000)*1000 -> 7378137 | D40: 130.0471867 | E40: 132.3491796 | F40: =SQRT(E36^2 + V_SSO_1000^2- 2*E36*V_SSO_1000*COS(RADIANS(ABS(C38-D38)))) -> 4030.27434 | H40: =E40+D40+E38 -> 4326.669584
H41: ΔV tot
H42: =F40 + E40 -> 4162.62352
A43: LEO 500 km to GSO
B44: perigee | C44: apogee | D44: r | E44: Vr
A45: Elliptical Velocity | B45: =(Radius_Earth+200)*1000 -> 6578137 | C45: 42159000 | D45: =B45 -> 6578137 | E45: 10238.88587
B46: perigee | C46: apogee | D46: r | E46: Vr
A47: Elliptical Velocity | B47: =(Radius_Earth+200)*1000 -> 6578137 | C47: 42159000 | D47: =C47 -> 42159000 | E47: 1597.55666
C48: initial i (deg) | D48: final i (deg) | E48: ΔV (m/s)
A49: Simple inclination change | C49: 28.5 | D49: 0 | E49: =2*V_GEO*SIN(RADIANS(0.5*ABS(D49-C49))) -> 1513.756303
B50: perigee | C50: apogee | D50: ΔVapo | E50: ΔVperi | F50: ΔVapo+i | H50: ΔV tot
A51: Hohman with inclination change | B51: =SMA_LEO*1000 -> 6878137 | C51: 42159000 | D51: 1446.273178 | E51: 2369.739798 | F51: =SQRT(E47^2 + V_GEO^2- 2*E47*V_GEO*COS(RADIANS(ABS(C49-D49)))) -> 1836.537677 | G51: m/sec | H51: =E51+D51+E49 -> 5329.769279
H52: ΔV tot
G53: m/sec | H53: =F51 + E51 -> 4206.277475
A54: LEO 500 km to Supersync
B55: perigee | C55: apogee | D55: r | E55: Vr | F55: ΔV (km/s) | H55: Isp
A56: Elliptical Velocity | B56: =(Radius_Earth+200)*1000 -> 6578137 | C56: =2*42159000 -> 84318000 | D56: =B56 -> 6578137 | E56: 10602.90109 | F56: =E56-V_LEO_500 -> 2990.297136 | H56: 322
B57: perigee | C57: apogee | D57: r | E57: Vr
A58: Elliptical Velocity | B58: =(Radius_Earth+200)*1000 -> 6578137 | C58: =2*42159000 -> 84318000 | D58: =C58 -> 84318000 | E58: 827.1766808
C59: initial i (deg) | D59: final i (deg) | E59: ΔV (m/s)
A60: Simple inclination change | C60: 7 | D60: 0 | E60: =2*V_GEO*SIN(RADIANS(0.5*ABS(D60-C60))) -> 375.4270779 | G60: ΔV tot
B61: perigee | C61: apogee | D61: ΔVapo | E61: ΔVperi | F61: ΔVapo+i | G61: =E62+D62+E60 -> 4191.440054 | H61: m/sec
A62: Hohman with inclination change | B62: =SMA_LEO*1000 -> 6878137 | C62: 42159000 | D62: 1446.273178 | E62: 2369.739798 | F62: =SQRT(E58^2 + V_GEO^2- 2*E58*V_GEO*COS(RADIANS(ABS(C60-D60)))) -> 2256.066677 | G62: ΔV tot
G63: =F62 + E62 -> 4625.806475 | H63: m/sec
A65: (Boxes denote entry values)
A66: Thrust computation for HET transfer to GEO | J66: Description
A67: LEO altitude | B67: 500 | C67: km | J67: Enter from requirements
A68: ER | B68: =Radius_Earth -> 6378.137 | C68: km
A69: DU* | B69: =B67+ER -> 6878.137 | C69: km
A70: LEO in terms of DU* | B70: =B69/B68 -> 1.078392797
A71: GEO in terms of DU* | B71: =SMA_GEO/B68 -> 6.610020606
A72: 1 GM* | B72: =GM_Earth -> 398600000000000 | C72: m^2/s^2 | J72: GM* = 1 and use this as a conversion to whichever central body we are using
A73: 1 TU* | B73: =SQRT(B70^3)*TU -> 903.5191151 | C73: sec | J73: 1TU* = sqrt(ri^3/GM) using canonical coordinates (GM = 1) and ri in terms of DU*
A74: 1 SU* | B74: =B68/B73 -> 7.05921645 | C74: km/sec
A75: R - Orbit Ratio | B75: =B71/B70 -> 6.129511087 | J75: Used to look-up ΔVacc and λ
A76: inclination | B76: 28.5 | J76: Used to look-up ΔVacc and λ
A77: ΔVacc | B77: 0.7 | C77: SU | J77: Look-up from solutions to equations of motion, Figure 6-24 for Alfano trajectories.
A78: ΔVacc | B78: =ΔVacc_canonical*DU_local/1000*TU_local -> 4350.169779 | C78: m/sec | J78: Conversion: ΔVacc = ER/TU*
A79: λi | B79: -0.36 | J79: Look-up from solutions to equations of motion, Figure 6-24 for Alfano trajectories.
A80: Isp | B80: =VLOOKUP(B98,HET!B2:E13,3) -> 2217 | C80: sec | J80: Enter from data sheet
A81: Isp*g0 | B81: =Isp*g0 -> 21741.2322 | C81: m/s | J81: Calculation
A82: Mpl (reference) | B82: 36000 | C82: kg | D82: =B82/M0 -> 0.2703952983 | J82: Enter from requirements
A83: Ms (estimate) | B83: ='Mass Budget'!B4 -> 5297.185 | C83: kg | D83: =B83/M0 -> 0.03978705328 | J83: Enter from mass budget (automatically copied)
A84: Mw | B84: ='Mass Budget'!B5 -> 15720.53248 | C84: kg | D84: =B84/M0 -> 0.118076613
A85: Mbo | B85: ='Mass Budget'!B2 -> 57017.71748 | D85: =B85/M0 -> 0.4282589646
A86: Mp (calculated) | B86: =B89*(SUM(B82:B84)+B84)/(1-B89) -> 19102.97474 | C86: kg | D86: =B86/M0 -> 0.1434820709 | E86: kg | F86: Mp + return | J86: Calculated from propellant fraction,
A87: M0 | B87: =SUM(B82:B86) -> 133138.4097 | C87: kg | J87: Calculated : sum of Mpl, Ms, Mp)
A88: specific power | B88: =(B84)/D99 -> 30.17932763 | C88: kg/kW | D88: =(1/B85-1/M0) -> 1.002742763e-05 | E88: =D94*B84 -> 9526.642683 | F88: =D88*E88 -> 0.09552772003 | G88: =POWER(F88,2) -> 0.009125545294 | H88: =B88*G88/2 -> 0.1377014106 | I88: =1-H88 -> 0.8622985894 | J88: Melbourne & Sauer ETA per Eq. (38)
A89: propellant mass fraction | B89: 0.208 | J89: Enter from requirements - drives specific thrust (ai)
A90: Specific acceleration (ai) | B90: =Aggregate_Thrust/M0 -> 0.0002158355359 | C90: m/s^2 | J90: Thrust/m0 (careful of conversion, m to km)
A91: tf (calculated) | B91: =-1/specific_mass_flow_rate*(1-EXP((specific_mass_flow_rate*ΔVacc_km)/Specific_acceleration)) -> 18266646.41 | C91: sec | D91: =B91/(24*3600) -> 211.4195186 | E91: days | J91: The key calculation (validates against Example 6-13 in Vallado, beware the sign)
A92: specific mass flow rate | B92: =mass_flow_rate/M0 -> -9.927474849e-09 | C92: 1/s | F92: =F93/Mp__calculated -> -0.06918965407 | G92: 1/s | J92: Calculation mass flow rate divided by propellant mass, sensitive to propellant mass fraction
A93: mass flow rate | B93: =-Aggregate_Thrust/Isp_g0 -> -0.001321728214 | C93: kg/sec | F93: =mass_flow_rate*1000000 -> -1321.728214 | G93: mg/sec | J93: Calculation dm/dt= T^2/2*Eta*P where T and P and Eta are taken from the thruster data sheet
A94: thruster efficiency | B94: =VLOOKUP(B98,HET!B2:E13,4) -> 60.6 | D94: =B94/100 -> 0.606 | J94: Enter from data sheet, used to calculate mass flow rate
A95: thrust (per thruster) | B95: =VLOOKUP(B98,HET!B2:E13,2) -> 0.449 | C95: N | J95: Enter from data sheet
A96: Aggregate Thrust T | B96: =B95*B97 -> 28.736 | C96: N | D96: =B96*1000000 -> 28736000 | E96: mN | J96: Multiple of the number of thrusters
A97: Number of thrusters | B97: 64 | J97: Enter from requirements
A98: Power per Thruster | B98: 8061 | C98: W | J98: Enter from data sheet
A99: Total Power | B99: =B97*B98+5000 -> 520904 | C99: W | D99: =B99/1000 -> 520.904 | E99: kW | J99: Propulsion required power plus 5kW margin
A100: HET dissipation | B100: =B94*B99 -> 31566782.4 | C100: W
A101: HET standby power | B101: =D101*B97 -> 12800 | C101: W | D101: 200 | E101: W cathode heater
A102: Power density (BOL) per Panel | B102: 366 | C102: W/m^2 | J102: From Spectrolab Space Solar Panels datasheet for XTJ Panels BOL
A103: Power density (EOL) per Panel | B103: =B102*D103 -> 303.78 | C103: W/m^2 | D103: =1-F103 -> 0.83 | E103: EOL | F103: 0.17
A104: Panel Area | B104: 5.76 | C104: m^2 | D104: 2.4 x 2.4m
A105: Power per Panel (EOL) | B105: =B104*B103 -> 1749.7728 | C105: W
A106: Number panels required | B106: =B99/B105 -> 297.6980783
A107: Density Solar Panels | B107: 2.06 | C107: kg/m^2 | J107: From Spectrolab Space Solar Panels datasheet for .6mil Ceria Doped Coverslide
A108: Solar Panel Mass | B108: =B104*B107 -> 11.8656 | C108: kg | J108: Calculation including 20% margin
A109: Number of panels per wing | B109: 12 | J109: Calculation
A110: Power per Wing | B110: =B109*B105 -> 20997.2736 | C110: W | J110: Number panels across by number of panels in length
A111: Mass per wing | B111: =B108*B109 -> 142.3872 | C111: kg
A112: Number of SA wings Required | B112: =ROUNDUP(B99/B110,0) -> 25 | J112: Calculation, note that there is one wing each side
A113: Length of Wing - Single Column | B113: =B109*SQRT(B104) -> 28.8 | C113: m | J113: Calculation based on panel length, num cells in length, num of panels
A114: Length of W - Double Column | B114: =B113/2 -> 14.4 | C114: m
A115: Mass of Array | B115: =B112*B111 -> 3559.68
A116: Area of Array | B116: =B106*B104 -> 1714.740931
A117: Cable Length | B117: =ROUND(1.05*B113*B112/2,0) -> 378 | C117: m
A118: Actual Mp(tf) | B118: =ABS(B91*mass_flow_rate) -> 24143.54192 | C118: kg | J118: Actual propellant mass used during time of flight, less 500 kg reserved for return
A119: Radiator Capacity | B119: 533 | C119: W/m^2
A120: PPU Efficiency | B120: 0.94
A121: Active PPU Channels | B121: 2
A122: Max PPU Power | B122: =2*B98 -> 16122 | C122: W/m^2
A123: Max PPU Dissipation | B123: =B122*(1-B120) -> 967.32 | C123: W
A124: Area PM Radiators | B124: =ROUNDUP(B123/B119,2) -> 1.82 | C124: m^2
A125: Total Radiator Area | B125: =B124*2*B97 -> 232.96 | C125: m^2

Sheet HET
A1: Voltage | B1: Power | C1: Thrust (N) | D1: Isp | E1: Efficiency | F1: %Thrust | G1: Sources:
A2: 350 | B2: 4063 | C2: 0.245 | D2: 1927 | E2: 0.57 | F2: 1 | G2: IEPC-13-317, 2013, Table 1. BHT-8000 Throttle Table.
A3: 400 | B3: 4537 | C3: 0.26 | D3: 2077 | E3: 58.4 | F3: 0.5 | G3: Revised 9/6/2018, Private Communications with Dan Williams
A4: 600 | B4: 4544 | C4: 0.198 | D4: 2696 | E4: 59.6 | F4: 0.5 | G4: Revised 9/6/2018, Private Communications with Dan Williams
A5: 800 | B5: 4563 | C5: 0.172 | D5: 3203 | E5: 59.2 | F5: 0.5 | G5: Revised 9/6/2018, Private Communications with Dan Williams
A6: 350 | B6: 5999 | C6: 0.365 | D6: 1977 | E6: 0.57 | F6: 0.75 | G6: IEPC-13-317, 2013, Table 1. BHT-8000 Throttle Table.
A7: 400 | B7: 6295 | C7: 0.359 | D7: 2165 | E7: 60.6 | F7: 0.75 | G7: Revised 9/6/2018, Private Communications with Dan Williams
A8: 600 | B8: 6327 | C8: 0.295 | D8: 2583 | E8: 59.1 | F8: 0.75 | G8: Revised 9/6/2018, Private Communications with Dan Williams
A9: 800 | B9: 6342 | C9: 0.238 | D9: 3152 | E9: 58 | F9: 0.75 | G9: Revised 9/6/2018, Private Communications with Dan Williams
A10: 800 | B10: 8047 | C10: 0.325 | D10: 3068 | E10: 60.7 | F10: 1 | G10: Revised 9/6/2018, Private Communications with Dan Williams
A11: 600 | B11: 8058 | C11: 0.377 | D11: 2637 | E11: 60.5 | F11: 1 | G11: Revised 9/6/2018, Private Communications with Dan Williams
A12: 350 | B12: 8060 | C12: 0.465 | D12: 1979 | E12: 0.56 | F12: 0.5 | G12: IEPC-13-317, 2013, Table 1. BHT-8000 Throttle Table.
A13: 400 | B13: 8061 | C13: 0.449 | D13: 2217 | E13: 60.6 | F13: 1 | G13: Revised 9/6/2018, Private Communications with Dan Williams

Sheet Drag
A2: Mass | B2: =Calculations!B83+Calculations!B82 -> 41297.185 | C2: kg | D2: Calculations Sheet
A3: minXA | B3: 14.2 | C3: m2 | D3: Hubble, Table 9.10 SMAD
A4: maxXA | B4: 112 | C4: m2 | D4: Hubble, Table 9.10 SMAD
A5: Drag Coef | B5: 4 | D5: Hubble, Table 9.10 SMAD
A6: Reflectivity | B6: 1.8 | D6: GMAT default

Sheet Scaling
A1: Time flt | B1: 80 | C1: days | D1: =B1*Solar_s_per_d -> 6912000 | E1: sec
A2: PMF | B2: 0.19
A3: Payload: | B3: =Calculations!B82 -> 36000 | C3: kg
A4: HET | B4: Unit Thrust (N) | C4: Power (W) | D4: Isp_g0 (m/s) | E4: Mass (kg) per HET
A5: BHT8000 | B5: =Calculations!B95 -> 0.449 | C5: =Calculations!B98 -> 8061 | D5: =Isp_g0 -> 21741.2322 | E5: 25
A6: Solar Arrays | B6: Power Density (W/m^2) | C6: Mass Density (kg/m^2) | D6: System Specific Power (W/kg)
A7: UTJ GaAs | B7: =Calculations!B102 -> 366 | C7: 2.06 | D7: ='Mass Budget'!D11 -> 680
A9: Scaling
A10: N. HET | B10: T (N) | C10: M0 (kg) | D10: Power (W) | E10: Required Area SA (m^2) | F10: Num Panels | G10: Mass SA (kg) | H10: Mass HET (kg) | I10: Mass Pwr Eq. (kg) | J10: Mass (kg) Thermal Pnls | K10: Dry Mass (kg) | L10: Mass Pl (kg) | M10: Mass Prop (kg
A11: 16 | B11: =A11*$B$5 -> 7.184 | C11: =SUM(K11:M11) ->  | D11: =A11*$C$5*1.2 -> 154771.2 | E11: =D11/$B$7 -> 422.8721311 | F11: =E11/Calculations!#REF! ->  | G11: =$C$7*E11 -> 871.1165902 | H11: =A11*($E$5+'Mass Budget'!$D$25*'Mass Budget'!$H$25+'Mass Budget'!$D$26) -> 656 | I11: =D11/$D$7 -> 227.6047059 | J11: =D11*'Mass Budget'!$D$21/'Mass Budget'!$D$20 -> 232.1568 | K11: ='Mass Budget'!#REF!+SUM(G11:J11) ->  | L11: =$B$3 -> 36000 | M11: =$B$2*(2*K11+L11)+500 -> 
A12: 20 | B12: =A12*$B$5 -> 8.98 | D12: 193464 | E12: 528.5901639 | F12: =E12/Calculations!#REF! ->  | G12: =$C$7*E12 -> 1088.895738 | H12: =A12*($E$5+'Mass Budget'!$D$25*'Mass Budget'!$H$25+'Mass Budget'!$D$26) -> 820 | I12: =D12/$D$7 -> 284.5058824 | J12: =D12*'Mass Budget'!$D$21/'Mass Budget'!$D$20 -> 290.196 | K12: ='Mass Budget'!#REF!+SUM(G12:J12) ->  | L12: =$B$3 -> 36000 | M12: =$B$2*(2*K12+L12)+500 -> 
A13: 24 | B13: 10.776 | D13: 232156.8 | E13: 634.3081967 | F13: =E13/Calculations!#REF! ->  | G13: 1306.674885 | H13: =A13*($E$5+'Mass Budget'!$D$25*'Mass Budget'!$H$25+'Mass Budget'!$D$26) -> 984 | I13: 341.4070588 | J13: =D13*'Mass Budget'!$D$21/'Mass Budget'!$D$20 -> 348.2352 | K13: ='Mass Budget'!#REF!+SUM(G13:J13) ->  | L13: 36000
A14: 28 | B14: 12.572 | D14: 270849.6 | E14: 740.0262295 | F14: =E14/Calculations!#REF! ->  | G14: 1524.454033 | H14: =A14*($E$5+'Mass Budget'!$D$25*'Mass Budget'!$H$25+'Mass Budget'!$D$26) -> 1148 | I14: 398.3082353 | J14: =D14*'Mass Budget'!$D$21/'Mass Budget'!$D$20 -> 406.2744 | K14: ='Mass Budget'!#REF!+SUM(G14:J14) ->  | L14: 36000
A15: 32 | B15: 14.368 | D15: 309542.4 | E15: 845.7442623 | F15: =E15/Calculations!#REF! ->  | G15: 1742.23318 | H15: =A15*($E$5+'Mass Budget'!$D$25*'Mass Budget'!$H$25+'Mass Budget'!$D$26) -> 1312 | I15: 455.2094118 | J15: =D15*'Mass Budget'!$D$21/'Mass Budget'!$D$20 -> 464.3136 | K15: ='Mass Budget'!#REF!+SUM(G15:J15) ->  | L15: 36000
A16: 36 | B16: 16.164 | D16: 348235.2 | E16: 951.4622951 | F16: =E16/Calculations!#REF! ->  | G16: 1960.012328 | H16: =A16*($E$5+'Mass Budget'!$D$25*'Mass Budget'!$H$25+'Mass Budget'!$D$26) -> 1476 | I16: 512.1105882 | J16: =D16*'Mass Budget'!$D$21/'Mass Budget'!$D$20 -> 522.3528 | K16: ='Mass Budget'!#REF!+SUM(G16:J16) ->  | L16: 36000
A17: 40 | B17: 17.96 | D17: 386928 | E17: 1057.180328 | F17: =E17/Calculations!#REF! ->  | G17: 2177.791475 | H17: =A17*($E$5+'Mass Budget'!$D$25*'Mass Budget'!$H$25+'Mass Budget'!$D$26) -> 1640 | I17: 569.0117647 | J17: =D17*'Mass Budget'!$D$21/'Mass Budget'!$D$20 -> 580.392 | K17: ='Mass Budget'!#REF!+SUM(G17:J17) ->  | L17: 36000
A18: 44 | B18: 19.756 | D18: 425620.8 | E18: 1162.898361 | F18: =E18/Calculations!#REF! ->  | G18: 2395.570623 | H18: =A18*($E$5+'Mass Budget'!$D$25*'Mass Budget'!$H$25+'Mass Budget'!$D$26) -> 1804 | I18: 625.9129412 | J18: =D18*'Mass Budget'!$D$21/'Mass Budget'!$D$20 -> 638.4312 | K18: ='Mass Budget'!#REF!+SUM(G18:J18) ->  | L18: 36000
A19: 48 | B19: 21.552 | D19: 464313.6 | E19: 1268.616393 | F19: =E19/Calculations!#REF! ->  | G19: 2613.34977 | H19: =A19*($E$5+'Mass Budget'!$D$25*'Mass Budget'!$H$25+'Mass Budget'!$D$26) -> 1968 | I19: 682.8141176 | J19: =D19*'Mass Budget'!$D$21/'Mass Budget'!$D$20 -> 696.4704 | K19: ='Mass Budget'!#REF!+SUM(G19:J19) ->  | L19: 36000
A20: 52 | B20: 23.348 | D20: 503006.4 | E20: 1374.334426 | F20: =E20/Calculations!#REF! ->  | G20: 2831.128918 | H20: =A20*($E$5+'Mass Budget'!$D$25*'Mass Budget'!$H$25+'Mass Budget'!$D$26) -> 2132 | I20: 739.7152941 | J20: =D20*'Mass Budget'!$D$21/'Mass Budget'!$D$20 -> 754.5096 | K20: ='Mass Budget'!#REF!+SUM(G20:J20) ->  | L20: 36000
A21: 56 | B21: 25.144 | D21: 541699.2 | E21: 1480.052459 | F21: =E21/Calculations!#REF! ->  | G21: 3048.908066 | H21: =A21*($E$5+'Mass Budget'!$D$25*'Mass Budget'!$H$25+'Mass Budget'!$D$26) -> 2296 | I21: 796.6164706 | J21: =D21*'Mass Budget'!$D$21/'Mass Budget'!$D$20 -> 812.5488 | K21: ='Mass Budget'!#REF!+SUM(G21:J21) ->  | L21: 36000
A22: 60 | B22: 26.94 | D22: 580392 | E22: 1585.770492 | F22: =E22/Calculations!#REF! ->  | G22: 3266.687213 | H22: =A22*($E$5+'Mass Budget'!$D$25*'Mass Budget'!$H$25+'Mass Budget'!$D$26) -> 2460 | I22: 853.5176471 | J22: =D22*'Mass Budget'!$D$21/'Mass Budget'!$D$20 -> 870.588 | K22: ='Mass Budget'!#REF!+SUM(G22:J22) ->  | L22: 36000
A23: 64 | B23: 28.736 | D23: 619084.8 | E23: 1691.488525 | F23: =E23/Calculations!#REF! ->  | G23: 3484.466361 | H23: =A23*($E$5+'Mass Budget'!$D$25*'Mass Budget'!$H$25+'Mass Budget'!$D$26) -> 2624 | I23: 910.4188235 | J23: =D23*'Mass Budget'!$D$21/'Mass Budget'!$D$20 -> 928.6272 | K23: ='Mass Budget'!#REF!+SUM(G23:J23) ->  | L23: 36000
A24: 68 | B24: 30.532 | D24: 657777.6 | E24: 1797.206557 | F24: =E24/Calculations!#REF! ->  | G24: 3702.245508 | H24: =A24*($E$5+'Mass Budget'!$D$25*'Mass Budget'!$H$25+'Mass Budget'!$D$26) -> 2788 | I24: 967.32 | J24: =D24*'Mass Budget'!$D$21/'Mass Budget'!$D$20 -> 986.6664 | K24: ='Mass Budget'!#REF!+SUM(G24:J24) ->  | L24: 36000
A25: 72 | B25: 32.328 | D25: 696470.4 | E25: 1902.92459 | F25: =E25/Calculations!#REF! ->  | G25: 3920.024656 | H25: =A25*($E$5+'Mass Budget'!$D$25*'Mass Budget'!$H$25+'Mass Budget'!$D$26) -> 2952 | I25: 1024.221176 | J25: =D25*'Mass Budget'!$D$21/'Mass Budget'!$D$20 -> 1044.7056 | K25: ='Mass Budget'!#REF!+SUM(G25:J25) ->  | L25: 36000
A26: 76 | B26: 34.124 | D26: 735163.2 | E26: 2008.642623 | F26: =E26/Calculations!#REF! ->  | G26: 4137.803803 | H26: =A26*($E$5+'Mass Budget'!$D$25*'Mass Budget'!$H$25+'Mass Budget'!$D$26) -> 3116 | I26: 1081.122353 | J26: =D26*'Mass Budget'!$D$21/'Mass Budget'!$D$20 -> 1102.7448 | K26: ='Mass Budget'!#REF!+SUM(G26:J26) ->  | L26: 36000
A27: 80 | B27: 35.92 | D27: 773856 | E27: 2114.360656 | F27: =E27/Calculations!#REF! ->  | G27: 4355.582951 | H27: =A27*($E$5+'Mass Budget'!$D$25*'Mass Budget'!$H$25+'Mass Budget'!$D$26) -> 3280 | I27: 1138.023529 | J27: =D27*'Mass Budget'!$D$21/'Mass Budget'!$D$20 -> 1160.784 | K27: ='Mass Budget'!#REF!+SUM(G27:J27) ->  | L27: 36000
A28: 84 | B28: 37.716 | D28: 812548.8 | E28: 2220.078689 | F28: =E28/Calculations!#REF! ->  | G28: 4573.362098 | H28: =A28*($E$5+'Mass Budget'!$D$25*'Mass Budget'!$H$25+'Mass Budget'!$D$26) -> 3444 | I28: 1194.924706 | J28: =D28*'Mass Budget'!$D$21/'Mass Budget'!$D$20 -> 1218.8232 | K28: ='Mass Budget'!#REF!+SUM(G28:J28) ->  | L28: 36000
A29: 88 | B29: 39.512 | D29: 851241.6 | E29: 2325.796721 | F29: =E29/Calculations!#REF! ->  | G29: 4791.141246 | H29: =A29*($E$5+'Mass Budget'!$D$25*'Mass Budget'!$H$25+'Mass Budget'!$D$26) -> 3608 | I29: 1251.825882 | J29: =D29*'Mass Budget'!$D$21/'Mass Budget'!$D$20 -> 1276.8624 | K29: ='Mass Budget'!#REF!+SUM(G29:J29) ->  | L29: 36000
A30: 92 | B30: 41.308 | D30: 889934.4 | E30: 2431.514754 | F30: =E30/Calculations!#REF! ->  | G30: 5008.920393 | H30: =A30*($E$5+'Mass Budget'!$D$25*'Mass Budget'!$H$25+'Mass Budget'!$D$26) -> 3772 | I30: 1308.727059 | J30: =D30*'Mass Budget'!$D$21/'Mass Budget'!$D$20 -> 1334.9016 | K30: ='Mass Budget'!#REF!+SUM(G30:J30) ->  | L30: 36000
A31: 96 | B31: 43.104 | D31: 928627.2 | E31: 2537.232787 | F31: =E31/Calculations!#REF! ->  | G31: 5226.699541 | H31: =A31*($E$5+'Mass Budget'!$D$25*'Mass Budget'!$H$25+'Mass Budget'!$D$26) -> 3936 | I31: 1365.628235 | J31: =D31*'Mass Budget'!$D$21/'Mass Budget'!$D$20 -> 1392.9408 | K31: ='Mass Budget'!#REF!+SUM(G31:J31) ->  | L31: 36000
A32: 100 | B32: 44.9 | D32: 967320 | E32: 2642.95082 | F32: =E32/Calculations!#REF! ->  | G32: 5444.478689 | H32: =A32*($E$5+'Mass Budget'!$D$25*'Mass Budget'!$H$25+'Mass Budget'!$D$26) -> 4100 | I32: 1422.529412 | J32: =D32*'Mass Budget'!$D$21/'Mass Budget'!$D$20 -> 1450.98 | K32: ='Mass Budget'!#REF!+SUM(G32:J32) ->  | L32: 36000
A33: 104 | B33: 46.696 | D33: 1006012.8 | E33: 2748.668852 | F33: =E33/Calculations!#REF! ->  | G33: 5662.257836 | H33: =A33*($E$5+'Mass Budget'!$D$25*'Mass Budget'!$H$25+'Mass Budget'!$D$26) -> 4264 | I33: 1479.430588 | J33: =D33*'Mass Budget'!$D$21/'Mass Budget'!$D$20 -> 1509.0192 | K33: ='Mass Budget'!#REF!+SUM(G33:J33) ->  | L33: 36000
A34: 108 | B34: 48.492 | D34: 1044705.6 | E34: 2854.386885 | F34: =E34/Calculations!#REF! ->  | G34: 5880.036984 | H34: =A34*($E$5+'Mass Budget'!$D$25*'Mass Budget'!$H$25+'Mass Budget'!$D$26) -> 4428 | I34: 1536.331765 | J34: =D34*'Mass Budget'!$D$21/'Mass Budget'!$D$20 -> 1567.0584 | K34: ='Mass Budget'!#REF!+SUM(G34:J34) ->  | L34: 36000
A35: 112 | B35: 50.288 | D35: 1083398.4 | E35: 2960.104918 | F35: =E35/Calculations!#REF! ->  | G35: 6097.816131 | H35: =A35*($E$5+'Mass Budget'!$D$25*'Mass Budget'!$H$25+'Mass Budget'!$D$26) -> 4592 | I35: 1593.232941 | J35: =D35*'Mass Budget'!$D$21/'Mass Budget'!$D$20 -> 1625.0976 | K35: ='Mass Budget'!#REF!+SUM(G35:J35) ->  | L35: 36000
A36: 116 | B36: 52.084 | D36: 1122091.2 | E36: 3065.822951 | F36: =E36/Calculations!#REF! ->  | G36: 6315.595279 | H36: =A36*($E$5+'Mass Budget'!$D$25*'Mass Budget'!$H$25+'Mass Budget'!$D$26) -> 4756 | I36: 1650.134118 | J36: =D36*'Mass Budget'!$D$21/'Mass Budget'!$D$20 -> 1683.1368 | K36: ='Mass Budget'!#REF!+SUM(G36:J36) ->  | L36: 36000
A37: 120 | B37: 53.88 | D37: 1160784 | E37: 3171.540984 | F37: =E37/Calculations!#REF! ->  | G37: 6533.374426 | H37: =A37*($E$5+'Mass Budget'!$D$25*'Mass Budget'!$H$25+'Mass Budget'!$D$26) -> 4920 | I37: 1707.035294 | J37: =D37*'Mass Budget'!$D$21/'Mass Budget'!$D$20 -> 1741.176 | K37: ='Mass Budget'!#REF!+SUM(G37:J37) ->  | L37: 36000
A38: 124 | B38: 55.676 | D38: 1199476.8 | E38: 3277.259016 | F38: =E38/Calculations!#REF! ->  | G38: 6751.153574 | H38: =A38*($E$5+'Mass Budget'!$D$25*'Mass Budget'!$H$25+'Mass Budget'!$D$26) -> 5084 | I38: 1763.936471 | J38: =D38*'Mass Budget'!$D$21/'Mass Budget'!$D$20 -> 1799.2152 | K38: ='Mass Budget'!#REF!+SUM(G38:J38) ->  | L38: 36000
A39: 128 | B39: 57.472 | D39: 1238169.6 | E39: 3382.977049 | F39: =E39/Calculations!#REF! ->  | G39: 6968.932721 | H39: =A39*($E$5+'Mass Budget'!$D$25*'Mass Budget'!$H$25+'Mass Budget'!$D$26) -> 5248 | I39: 1820.837647 | J39: =D39*'Mass Budget'!$D$21/'Mass Budget'!$D$20 -> 1857.2544 | K39: ='Mass Budget'!#REF!+SUM(G39:J39) ->  | L39: 36000
A40: 132 | B40: 59.268 | D40: 1276862.4 | E40: 3488.695082 | F40: =E40/Calculations!#REF! ->  | G40: 7186.711869 | H40: =A40*($E$5+'Mass Budget'!$D$25*'Mass Budget'!$H$25+'Mass Budget'!$D$26) -> 5412 | I40: 1877.738824 | J40: =D40*'Mass Budget'!$D$21/'Mass Budget'!$D$20 -> 1915.2936 | K40: ='Mass Budget'!#REF!+SUM(G40:J40) ->  | L40: 36000
A41: 136 | B41: 61.064 | D41: 1315555.2 | E41: 3594.413115 | F41: =E41/Calculations!#REF! ->  | G41: 7404.491016 | H41: =A41*($E$5+'Mass Budget'!$D$25*'Mass Budget'!$H$25+'Mass Budget'!$D$26) -> 5576 | I41: 1934.64 | J41: =D41*'Mass Budget'!$D$21/'Mass Budget'!$D$20 -> 1973.3328 | K41: ='Mass Budget'!#REF!+SUM(G41:J41) ->  | L41: 36000
A42: 140 | B42: 62.86 | D42: 1354248 | E42: 3700.131148 | F42: =E42/Calculations!#REF! ->  | G42: 7622.270164 | H42: =A42*($E$5+'Mass Budget'!$D$25*'Mass Budget'!$H$25+'Mass Budget'!$D$26) -> 5740 | I42: 1991.541176 | J42: =D42*'Mass Budget'!$D$21/'Mass Budget'!$D$20 -> 2031.372 | K42: ='Mass Budget'!#REF!+SUM(G42:J42) ->  | L42: 36000
A43: 144 | B43: 64.656 | D43: 1392940.8 | E43: 3805.84918 | F43: =E43/Calculations!#REF! ->  | G43: 7840.049311 | H43: =A43*($E$5+'Mass Budget'!$D$25*'Mass Budget'!$H$25+'Mass Budget'!$D$26) -> 5904 | I43: 2048.442353 | J43: =D43*'Mass Budget'!$D$21/'Mass Budget'!$D$20 -> 2089.4112 | K43: ='Mass Budget'!#REF!+SUM(G43:J43) ->  | L43: 36000
A44: 148 | B44: 66.452 | D44: 1431633.6 | E44: 3911.567213 | F44: =E44/Calculations!#REF! ->  | G44: 8057.828459 | H44: =A44*($E$5+'Mass Budget'!$D$25*'Mass Budget'!$H$25+'Mass Budget'!$D$26) -> 6068 | I44: 2105.343529 | J44: =D44*'Mass Budget'!$D$21/'Mass Budget'!$D$20 -> 2147.4504 | K44: ='Mass Budget'!#REF!+SUM(G44:J44) ->  | L44: 36000
A45: 152 | B45: 68.248 | D45: 1470326.4 | E45: 4017.285246 | F45: =E45/Calculations!#REF! ->  | G45: 8275.607607 | H45: =A45*($E$5+'Mass Budget'!$D$25*'Mass Budget'!$H$25+'Mass Budget'!$D$26) -> 6232 | I45: 2162.244706 | J45: =D45*'Mass Budget'!$D$21/'Mass Budget'!$D$20 -> 2205.4896 | K45: ='Mass Budget'!#REF!+SUM(G45:J45) ->  | L45: 36000
A46: 156 | B46: 70.044 | D46: 1509019.2 | E46: 4123.003279 | F46: =E46/Calculations!#REF! ->  | G46: 8493.386754 | H46: =A46*($E$5+'Mass Budget'!$D$25*'Mass Budget'!$H$25+'Mass Budget'!$D$26) -> 6396 | I46: 2219.145882 | J46: =D46*'Mass Budget'!$D$21/'Mass Budget'!$D$20 -> 2263.5288 | K46: ='Mass Budget'!#REF!+SUM(G46:J46) ->  | L46: 36000
A47: 160 | B47: 71.84 | D47: 1547712 | E47: 4228.721311 | F47: =E47/Calculations!#REF! ->  | G47: 8711.165902 | H47: =A47*($E$5+'Mass Budget'!$D$25*'Mass Budget'!$H$25+'Mass Budget'!$D$26) -> 6560 | I47: 2276.047059 | J47: =D47*'Mass Budget'!$D$21/'Mass Budget'!$D$20 -> 2321.568 | K47: ='Mass Budget'!#REF!+SUM(G47:J47) ->  | L47: 36000
A48: 164 | B48: 73.636 | D48: 1586404.8 | E48: 4334.439344 | F48: =E48/Calculations!#REF! ->  | G48: 8928.945049 | H48: =A48*($E$5+'Mass Budget'!$D$25*'Mass Budget'!$H$25+'Mass Budget'!$D$26) -> 6724 | I48: 2332.948235 | J48: =D48*'Mass Budget'!$D$21/'Mass Budget'!$D$20 -> 2379.6072 | K48: ='Mass Budget'!#REF!+SUM(G48:J48) ->  | L48: 36000

Sheet Mass Budget
A1: Subsystem | B1: Total Estimates (kg) | D1: Qty | E1: Units | F1: Item | G1: Manufacture | H1: Unit Mult. | J1: Mdry | K1: Units | L1: Comment
A2: Total Mbo | B2: =SUM(B3:B5) -> 57017.71748
A3: Reference P/L | B3: =Calculations!B82 -> 36000
A4: Ms | B4: =SUM(B23:B32) -> 5297.185 | E4: kg
A5: Mw | B5: =SUM(B8:B22) -> 15720.53248
A7: Subsystems:
A8: Power | B8: =SUM(J9:J17) -> 14939.17648
F9: Solar Wings from Calculations | J9: =Calculations!B115 -> 3559.68 | K9: kg
D11: 680 | E11: W/kg | F11: Power Electronics | J11: =Calculations!B99/'Mass Budget'!D11 -> 766.0352941 | K11: kg | L11: AIAA 2009-4613
F12: Allowed DoD | H12: 0.8
F13: max eclipse time | H13: 67 | I13: min
F14: Standby Power Required plus margin for DoD | H14: =Calculations!B101+1500/H12 -> 14675 | I14: W
G15: SAFT | H15: 140 | I15: Wh/kg | L15: SAFT Lithium ION Cell
D16: 4.85 | E16: kg/cell | F16: li-IonBatteries 240 A-Hr | H16: =H14*H13/(60*H15) -> 117.0505952 | I16: cells | J16: =H16*D16 -> 567.6953869 | K16: kg | L16: Roughly a constant - 7.2 kW-hr
F17: 2 x1/1 conductors per HET, length 2* array section | G17: Mil-W-22759 | H17: 0.531522 | I17: kg/m | J17: =2*Calculations!B117*Calculations!B112*H17 -> 10045.7658 | K17: kg
G18: 1/1 AWG | H18: 0.531522
A19: Thermal | B19: =D22/D20 -> 781.356 | G19: 1/0 AWG | H19: 0.648753
D20: 400 | E20: W/kg | F20: Alpha
D21: 0.6 | F21: Power Efficiency
D22: =D21*Calculations!B99 -> 312542.4 | E22: W | F22: Thermal Rejection
A23: Propulsion | B23: =SUM(J24:J26) -> 3584 | E23: kg
D24: =Calculations!B97 -> 64 | F24: 8 kW 25 cm Hall Effect Thrusters | G24: Busek | H24: 25 | I24: kg | J24: =D24*H24 -> 1600 | K24: kg
D25: 30 | E25: kg | F25: Propulsion Power Processing Unit | G25: Moog | H25: 0.5 | J25: =2*D24*D25*H25 -> 1920 | K25: kg | L25: assuming 2 PPU per 4 thrusters
D26: 1 | E26: kg | F26: Lines & Valves, Regulators | J26: =D24*D26 -> 64 | K26: kg
A27: Structure & Mech | B27: =266+J27 -> 988.625 | D27: 0.47 | E27: kg/m | F27: High Modulus Carbon Composit, 10cm dia, 0.14cm wall | J27: =(Calculations!B117+Calculations!B97*3+18*2.5)*'Mass Budget'!D27*2.5 -> 722.625 | L27: Reference JPL SRO
A28: MMOD | B28: 207 | F28: Whipple Shielding | L28: 3 m^2 x 0.230 g/cm^2 Whipple Shield (Cherniav and Telichev, Journal of Spacecraft and Rockets, Jan-Feb 2017, p.86
A29: Comm | B29: =0.04*Reference_Ms -> 108.96 | L29: SMAD Table 14-18, Centaur Reference
A30: ADCS | B30: =0.08*Reference_Ms -> 217.92 | L30: SMAD Table 14-18, Centaur Reference
A31: C&DH | B31: =0.05*Reference_Ms -> 136.2 | L31: SMAD Table 14-18, Centaur Reference
A32: Signal Harness | B32: =0.02*Reference_Ms -> 54.48 | L32: Guestimate
